{"text_format":"1","workbook":"xlsx","n_sheets":4,"sheets":["Order form","Languages","LangBackup","Setup"],"not_rendered":{"charts":0,"images":6,"macros":1,"external_links":2,"defined_names":12,"comments":0,"pivot_tables":0},"unopened":[],"bounds":{"document_bytes":16777216,"sheet_cells":100000,"rows_first":2000,"rows_last":500,"rows_between":2000,"halvings":0,"cell_chars":16384,"cell_head_chars":4096},"cells_cut":0,"cells_raw":0,"read":"whole","date_system":"1900"}

{"sheet":"Order form","index":0,"n_rows":70,"n_cols":41,"rows_kept":70,"cut":false,"hidden":false,"merged":[[27,26,27,29],[48,16,48,35],[49,16,49,25],[52,16,52,35],[53,16,53,35],[49,27,49,35],[33,16,33,35],[38,16,38,25],[38,26,38,29],[38,30,38,35],[30,16,30,35],[32,16,32,35],[27,16,27,25],[27,30,27,35],[34,16,34,35],[1,12,1,27],[2,12,2,27],[10,18,10,25],[14,28,14,35],[14,18,14,25],[2,30,2,35],[7,18,7,25],[8,18,8,25],[9,18,9,25],[13,18,13,25],[13,28,13,35],[14,5,14,13],[1,6,1,11],[1,30,1,35],[11,5,11,13],[7,5,7,13],[23,16,23,35],[22,16,22,25],[22,30,22,35],[22,26,22,29],[15,1,15,35],[17,1,17,6],[18,1,18,6],[8,5,8,13],[9,5,9,13],[10,5,10,13],[7,28,7,35],[8,28,8,35],[9,28,9,35],[10,28,10,35],[11,28,11,35],[11,18,11,25],[17,7,17,35],[44,16,44,35],[42,16,42,35],[21,16,21,35],[28,16,28,35],[35,16,35,35],[29,16,29,35],[36,16,36,35],[43,16,43,35],[40,16,40,35],[31,16,31,35],[24,16,24,35],[25,16,25,35],[26,16,26,35],[54,16,54,35],[5,5,5,13],[5,18,5,25],[5,28,5,35],[6,5,6,13],[6,18,6,25],[6,28,6,35],[12,5,12,13],[12,28,12,35],[41,16,41,35],[13,5,13,13],[12,18,12,25],[20,16,20,35],[47,16,47,35],[51,16,51,35],[18,7,18,35],[69,7,69,10],[62,1,67,35],[55,16,55,35],[56,16,56,35],[69,25,69,35],[69,11,69,12],[69,13,69,15]]}
["DELTA20190624EN"]
[100,"Language",null,null,null,null,"English",null,null,null,null,null,"LIFTBOY 1",null,null,null,null,null,null,null,null,null,null,null,null,null,null,null,"Date",null,{"$f":"TODAY()","v":"2021-12-14"}]
[110,null,null,null,null,null,null,null,null,null,null,null,"ORDER FORM",null,null,null,null,null,null,null,null,null,null,null,null,null,null,null,"Version",null,"Lehner 01"]
[]
[null,null,null,null,null,null,null,null,null,null,null,null,null,null,"Distributor: (always fill out)",null,null,null,null,null,null,null,null,null,null,null,"Delivery address: (always fill out)"]
[120,"Company:",null,null,null,"Lehner Lifttechnik GmbH",null,null,null,null,null,null,null,null,"Company",null,null,null,null,null,null,null,null,null,null,null,"Company"]
[130,"Name:",null,null,null,"Max Lehner",null,null,null,null,null,null,null,null,"Name:",null,null,null,null,null,null,null,null,null,null,null,"Name:"]
[140,"Adress:",null,null,null,"Salling 8",null,null,null,null,null,null,null,null,"Address",null,null,null,null,null,null,null,null,null,null,null,"Address"]
[150,"Postcode:",null,null,null,"A - 4724",null,null,null,null,null,null,null,null,"Postcode",null,null,null,null,null,null,null,null,null,null,null,"Postcode"]
[160,"City:",null,null,null,"Neukirchen am Walde",null,null,null,null,null,null,null,null,"City",null,null,null,null,null,null,null,null,null,null,null,"City"]
[170,"Country:",null,null,null,"Austria",null,null,null,null,null,null,null,null,"Country",null,null,null,null,null,null,null,null,null,null,null,"Country"]
[180,"Phone no:",null,null,null,"+43 7278 3514-0",null,null,null,null,null,null,null,null,"Telephone",null,null,null,null,null,null,null,null,null,null,null,"Telephone"]
[190,"E-mail:",null,null,null,"office@lehnerlifttechnik.at",null,null,null,null,null,null,null,null,"Email"]
[200,"ID:",null,null,null,"ATU22360601",null,null,null,null,null,null,null,null,"ID:"]
[210,"VAT ID:",null,null,null,"ATU22360601",null,null,null,null,null,null,null,null,"VAT ID:"]
[220,"Pick up address for lifts: Spedition Englmayer, Wiesenstrasse 71, 4600 Wels, Austria"]
[]
[null,"Production no.",null,null,null,null,null,"Order reference name (or number)"]
[230]
[]
[1000,"Liftboy type",null,null,null,null,null,null,null,null,null,null,null,null,null,null,"LIFTBOY 1  -  Lifting height 595 mm / 180 kg capacity",null,null,null,null,null,null,null,null,null,null,null,null,null,null,null,null,null,null,null,null,null,null,"LEFT - Side exit on upper landing","RIGHT - Side exit on upper landing"]
[1010,"Lifting height exact (optional)"]
[null,"Pit (if applicable) in mm",null,null,null,null,null,null,null,null,null,null,null,null,null,null,"No (standard)",null,null,null,null,null,null,null,null,null,{"$f":"IF(ISNUMBER(FIND(\"n\",Q23)),\"\",\"mm:\")","v":""},null,null,null,null,null,null,null,null,null,null,null,{"$f":"IF(Q23=\"Yes\",\"The lifting height is reduced by the pit depth\", \"\")","v":""}]
[null,"Installation location",null,null,null,null,null,null,null,null,null,null,null,null,null,null,"Indoor"]
[null,"Loading ramp",null,null,null,null,null,null,null,null,null,null,null,null,null,null,"Automatic",null,null,null,null,null,null,null,null,null,null,null,null,null,null,null,null,null,null,null,null,null,{"$f":"IF(Q25=\"Ja\",\"The lifting travel is reduced by the pit depth\", \"\")","v":""}]
[null,"Side exit on upper landing",null,null,null,null,null,null,null,null,null,null,{"$f":"IF(Q25=\"No (standard)\",\"See illustration on the right\", \"\")","v":""},null,null,null,"No (standard)",null,null,null,null,null,null,null,null,null,null,null,null,null,null,null,null,null,null,null,null,null,{"$f":"IF(Q26<>\"No (standard)\",\"See the illustration on the right\", \"\")","v":""}]
[null,"Side entry on lower landing ",null,null,null,null,null,null,null,null,null,null,null,null,null,null,"No (standard)",null,null,null,null,null,null,null,null,null,null,null,null,null,null,null,null,null,null,null,null,null,{"$f":"IF(Q27<>\"No (standard)\",\"See the illustration on the right\", \"\")","v":""},"LEFT - Side entry on lower landing ","RIGHT - Side entry on lower landing "]
[1020,"Surface color",null,null,null,null,null,null,null,null,null,null,null,null,null,null,"RAL 7035 (standard)",null,null,null,null,null,null,null,null,null,{"$f":"IF(ISNUMBER(FIND(\"Special\",Q28)),\"RAL:\",\"\")","v":""}]
[]
[null,"Extra options"]
[1040,"Pillar for control panel",null,null,null,null,null,null,null,null,null,null,null,null,null,null,"No"]
[1050,"Contact bar",null,null,null,null,null,null,null,null,null,null,null,null,null,null,"No"]
[1060,"Hard wired external control station",null,null,null,null,null,null,null,null,null,null,null,null,null,null,"No"]
[1070,"Radio controlled external control station",null,null,null,null,null,null,null,null,null,null,null,null,null,null,"No"]
[null,"Pillar for external control fixation",null,null,null,null,null,null,null,null,null,null,null,null,null,null,"No"]
[1080,"Higher lateral barriers (900 mm)",null,null,null,null,null,null,null,null,null,null,null,null,null,null,"No"]
[1090,"750 mm access ramp",null,null,null,null,null,null,null,null,null,null,null,null,null,null,"No",null,null,null,null,null,null,null,null,null,null,"RAL:",null,"RAL:",null,null,null,null,null,null,null,null,{"$f":"IF(Q27<>\"No (standard)\",\"Not possible for side entry on lower level\", \"\")","v":""}]
[1100]
[1110,"Special size access ramp",null,null,null,null,null,null,null,null,null,null,null,null,null,null,"No",null,null,null,null,null,null,null,null,null,{"$f":"IF(ISNUMBER(FIND(\"N\",Q39)),\"\",\"mm:\")","v":""},null,null,null,null,null,null,null,null,null,null,null,null,"Gate opening direction DIN"]
[1120]
[1130,"Transport wheels",null,null,null,null,null,null,null,null,null,null,null,null,null,null,"No"]
[1140,"Safety bar for upper landing",null,null,null,null,null,null,null,null,null,null,null,null,null,null,"No",null,null,null,null,null,null,null,null,null,null,null,null,null,null,null,null,null,null,null,null,null,null,"Left"]
[1150,"Gate on upper landing",null,null,null,null,null,null,null,null,null,null,null,null,null,null,"No",null,null,null,null,null,null,null,null,null,null,null,null,null,null,null,null,null,null,null,null,null,{"$f":"IF(Q43<>\"No\",\"See the illustration on the right\", \"\")","v":""}]
[1160,"Type of upper landing gate",null,null,null,null,null,null,null,null,null,null,null,null,null,null,"-",null,null,null,null,null,null,null,null,null,null,null,null,null,null,null,null,null,null,null,null,null,null,"Right"]
[1170,"Automatic gate opener (only for Liftboy 3)",null,null,null,null,null,null,null,null,null,null,null,null,null,null,"No"]
[]
[null,"Further specifications"]
[1210,"Transport box",null,null,null,null,null,null,null,null,null,null,null,null,null,null,"Q1 - cardboard box (standard)"]
[null,"Change in the order after approval",null,null,null,null,null,null,null,null,null,null,null,null,null,null,"No"]
[1220,"Warranty in months",null,null,null,null,null,null,null,null,null,null,null,null,null,null,"other"]
[1230]
[1240,"Montáž ALTECH",null,null,null,null,null,null,null,null,null,null,null,null,null,null,"No"]
[null,"Vzdálenost do místa instalace v km"]
[null,"Zapuštění plošiny do jámy",null,null,null,null,null,null,null,null,null,null,null,null,null,null,"No"]
[1260,"Stavební úpravy ALTECH",null,null,null,null,null,null,null,null,null,null,null,null,null,null,"No"]
[1460,"El. přípojka ALTECH",null,null,null,null,null,null,null,null,null,null,null,null,null,null,"No"]
[null,"Electric supply position",null,null,null,null,null,null,null,null,null,null,null,null,null,null,"Back - right side"]
[]
[]
[]
[null,"Additional information"]
[]
[1480]
[]
[]
[]
[]
[]
[]
[240,"Delivery date",null,null,null,null,null,"Week",null,null,null,null,null,2022,null,null,null,null,null,null,null,"Prepared by"]

{"sheet":"Languages","index":1,"n_rows":162,"n_cols":10,"rows_kept":162,"cut":false,"hidden":true,"merged":[]}
["Cell","Type","English","Deutsch","French","Español"]
[{"$f":"CELL(\"address\",'Order form'!M2)","v":"'[LIFTBOY1_Order form_2022_DE.xlsm]Order form'!$M$2"},"Label","LIFTBOY 1","LIFTBOY 1","LIFTBOY 1","LIFTBOY 1"]
[{"$f":"CELL(\"address\",'Order form'!M3)","v":"'[LIFTBOY1_Order form_2022_DE.xlsm]Order form'!$M$3"},"Label","ORDER FORM","BESTELLFORMULAR","BON DE COMMANDE","FORMULARIO DE PEDIDO"]
[{"$f":"CELL(\"address\",'Order form'!AC2)","v":"'[LIFTBOY1_Order form_2022_DE.xlsm]Order form'!$AC$2"},"Label","Date","Datum","Date","Fecha"]
[{"$f":"CELL(\"address\",'Order form'!B2)","v":"'[LIFTBOY1_Order form_2022_DE.xlsm]Order form'!$B$2"},"Label","Language","Sprache","La langue","Idioma"]
[{"$f":"CELL(\"address\",'Order form'!AC3)","v":"'[LIFTBOY1_Order form_2022_DE.xlsm]Order form'!$AC$3"},"Label","Version","Version","Version","Versión"]
[{"$f":"CELL(\"address\",'Order form'!O5)","v":"'[LIFTBOY1_Order form_2022_DE.xlsm]Order form'!$O$5"},"Label","Distributor: (always fill out)","Händler: (immer ausfüllen)","Distributeur:","Distribuidor: (siempre llene)"]
[{"$f":"CELL(\"address\",'Order form'!AA5)","v":"'[LIFTBOY1_Order form_2022_DE.xlsm]Order form'!$AA$5"},"Label","Delivery address: (always fill out)","Lieferadresse: (immer ausfüllen)","Adresse de livraison:","Dirección de entrega: (siempre completar)"]
[{"$f":"CELL(\"address\",'Order form'!O6)","v":"'[LIFTBOY1_Order form_2022_DE.xlsm]Order form'!$O$6"},"Label","Company","Firma","Société","Empresa"]
[{"$f":"CELL(\"address\",'Order form'!AA6)","v":"'[LIFTBOY1_Order form_2022_DE.xlsm]Order form'!$AA$6"},"Label","Company","Firma","Société","Empresa"]
[{"$f":"CELL(\"address\",'Order form'!O8)","v":"'[LIFTBOY1_Order form_2022_DE.xlsm]Order form'!$O$8"},"Label","Address","Anschrift","Adresse","Dirección"]
[{"$f":"CELL(\"address\",'Order form'!AA8)","v":"'[LIFTBOY1_Order form_2022_DE.xlsm]Order form'!$AA$8"},"Label","Address","Anschrift","Adresse","Dirección"]
[{"$f":"CELL(\"address\",'Order form'!O9)","v":"'[LIFTBOY1_Order form_2022_DE.xlsm]Order form'!$O$9"},"Label","Postcode","PLZ","Code postal","Código postal"]
[{"$f":"CELL(\"address\",'Order form'!AA9)","v":"'[LIFTBOY1_Order form_2022_DE.xlsm]Order form'!$AA$9"},"Label","Postcode","PLZ","Code postal","Código postal"]
[{"$f":"CELL(\"address\",'Order form'!O10)","v":"'[LIFTBOY1_Order form_2022_DE.xlsm]Order form'!$O$10"},"Label","City","Stadt","Ville","Ciudad"]
[{"$f":"CELL(\"address\",'Order form'!AA10)","v":"'[LIFTBOY1_Order form_2022_DE.xlsm]Order form'!$AA$10"},"Label","City","Stadt","Ville","Ciudad"]
[{"$f":"CELL(\"address\",'Order form'!O11)","v":"'[LIFTBOY1_Order form_2022_DE.xlsm]Order form'!$O$11"},"Label","Country","Land","Le pays","País"]
[{"$f":"CELL(\"address\",'Order form'!AA11)","v":"'[LIFTBOY1_Order form_2022_DE.xlsm]Order form'!$AA$11"},"Label","Country","Land","Le pays","País"]
[{"$f":"CELL(\"address\",'Order form'!O12)","v":"'[LIFTBOY1_Order form_2022_DE.xlsm]Order form'!$O$12"},"Label","Telephone","Telefon","Téléphone","Teléfono"]
[{"$f":"CELL(\"address\",'Order form'!AA12)","v":"'[LIFTBOY1_Order form_2022_DE.xlsm]Order form'!$AA$12"},"Label","Telephone","Telefon","Téléphone","Teléfono"]
[{"$f":"CELL(\"address\",'Order form'!B16)","v":"'[LIFTBOY1_Order form_2022_DE.xlsm]Order form'!$B$16"},"Label","Pick up address for lifts: Spedition Englmayer, Wiesenstrasse 71, 4600 Wels, Austria","ABHOLADRESSE: Spedition Englmayer, Wiesenstrasse 71, 4600 Wels, Austria","Adresse de ramassage: Spedition Englmayer, Wiesenstrasse 71, 4600 Wels, Austria","Dirección de recogida de los equipos: Spedition Englmayer, Wiesenstrasse 71, 4600 Wels, Austria"]
[{"$f":"CELL(\"address\",'Order form'!B18)","v":"'[LIFTBOY1_Order form_2022_DE.xlsm]Order form'!$B$18"},"Label","Production no.","Produktionsnr.","Num. de production","Producción no."]
[{"$f":"CELL(\"address\",'Order form'!H18)","v":"'[LIFTBOY1_Order form_2022_DE.xlsm]Order form'!$H$18"},"Label","Order reference name (or number)","Auftragsreferenz (Name oder Nummer)","Nom de référence de la commande (ou numéro)","Nombre de referencia del pedido (o número)"]
[]
[null,null,null,null,null,null,"Left","Links","La gauche","Izquierda"]
[null,null,null,null,null,null,"Right","Rechts","Droite","Derecha"]
[]
[]
[{"$f":"CELL(\"address\",'Order form'!B21)","v":"'[LIFTBOY1_Order form_2022_DE.xlsm]Order form'!$B$21"},"Label","Liftboy type","Liftboy Typ","Type de Liftboy","Tipo de Liftboy"]
[{"$f":"CELL(\"address\",'Order form'!B22)","v":"'[LIFTBOY1_Order form_2022_DE.xlsm]Order form'!$B$22"},"Label","Lifting height exact (optional)","Hubhöhe exakt (optional)","Hauteur de levage exacte (facultatif)","Altura de elevacion exacta (opcional)"]
[{"$f":"CELL(\"address\",'Order form'!B23)","v":"'[LIFTBOY1_Order form_2022_DE.xlsm]Order form'!$B$23"},"Label","Pit (if applicable) in mm","Montagegrube in mm (falls vorhanden)","Fosse (lsi existante) en mm","Foso (si existe) en mm"]
[{"$f":"CELL(\"address\",'Order form'!B24)","v":"'[LIFTBOY1_Order form_2022_DE.xlsm]Order form'!$B$24"},"Label","Installation location","Installationsort","Lieu d'installation","Ubicación de la instalación"]
[{"$f":"CELL(\"address\",'Order form'!B25)","v":"'[LIFTBOY1_Order form_2022_DE.xlsm]Order form'!$B$25"},"Label","Loading ramp","Auffahrrampe","Rampe d'accès","Rampa de acceso"]
[{"$f":"CELL(\"address\",'Order form'!B26)","v":"'[LIFTBOY1_Order form_2022_DE.xlsm]Order form'!$B$26"},"Label","Side exit on upper landing","Seitliche Ausfahrt an oberer Haltestelle","Sortie latérale sur le palier supérieur","Salida lateral en el aterrizaje superior"]
[{"$f":"CELL(\"address\",'Order form'!B27)","v":"'[LIFTBOY1_Order form_2022_DE.xlsm]Order form'!$B$27"},"Label","Side entry on lower landing ","Seitliche Auffahrt an unterer Haltestelle","Entrée latérale sur le palier inférieur ","Entrada lateral en el aterrizaje inferior "]
[{"$f":"CELL(\"address\",'Order form'!B28)","v":"'[LIFTBOY1_Order form_2022_DE.xlsm]Order form'!$B$28"},"Label","Surface color","Farbe der Anlage","Couleur de la surface","El color de la superficie"]
[{"$f":"CELL(\"address\",'Order form'!AN21)","v":"'[LIFTBOY1_Order form_2022_DE.xlsm]Order form'!$AN$21"},"Label","LEFT - Side exit on upper landing","LINKS - Seitliche Ausfahrt an oberer Haltestelle","À GAUCHE - Sortie latérale sur le palier supérieur","IZQUIERDA - Salida lateral en el aterrizaje superior"]
[{"$f":"CELL(\"address\",'Order form'!AO21)","v":"'[LIFTBOY1_Order form_2022_DE.xlsm]Order form'!$AO$21"},"Label","RIGHT - Side exit on upper landing","RECHTS - Seitliche Ausfahrt an oberer Haltestelle","DROIT - Sortie latérale sur le palier supérieur","DERECHA - Salida lateral en el aterrizaje superior"]
[{"$f":"CELL(\"address\",'Order form'!AN27)","v":"'[LIFTBOY1_Order form_2022_DE.xlsm]Order form'!$AN$27"},"Label","LEFT - Side entry on lower landing ","LINKS - Seitliche Auffahrt an unterer Haltestelle","À GAUCHE - Entrée latérale sur le palier inférieur ","IZQUIERDA - Entrada lateral en el aterrizaje inferior "]
[{"$f":"CELL(\"address\",'Order form'!AO27)","v":"'[LIFTBOY1_Order form_2022_DE.xlsm]Order form'!$AO$27"},"Label","RIGHT - Side entry on lower landing ","RECHTS - Seitliche Auffahrt an unterer Haltestelle","DROIT - Entrée latérale sur le palier inférieur ","DERECHA - Entrada lateral en el aterrizaje inferior "]
[]
[{"$f":"CELL(\"address\",'Order form'!Q21)","v":"'[LIFTBOY1_Order form_2022_DE.xlsm]Order form'!$Q$21"},"Label","LIFTBOY 1  -  Lifting height 595 mm / 180 kg capacity","LIFTBOY 1  -  Hubhöhe 595 mm / Traglast 180 kg","LIFTBOY 1  -  Hauteur de levage 595 mm / capacité 180 kg","LIFTBOY 1  -  Altura de elevación 595 mm / capacidad 180 kg"]
[]
[]
[{"$f":"CELL(\"address\",'Order form'!Q23)","v":"'[LIFTBOY1_Order form_2022_DE.xlsm]Order form'!$Q$23"},"Dropdown","No (standard)","Nein (Standard)","Non (Standard)","No (estándar)"]
[{"$f":"CELL(\"address\",'Order form'!Q23)","v":"'[LIFTBOY1_Order form_2022_DE.xlsm]Order form'!$Q$23"},"Dropdown","Yes","Ja","Oui","Sí"]
[{"$f":"CELL(\"address\",'Order form'!Q24)","v":"'[LIFTBOY1_Order form_2022_DE.xlsm]Order form'!$Q$24"},"Dropdown","Indoor","Innen","Intérieur","Interior"]
[{"$f":"CELL(\"address\",'Order form'!Q24)","v":"'[LIFTBOY1_Order form_2022_DE.xlsm]Order form'!$Q$24"},"Dropdown","Outdoor","Im Außenbereich","De plein air","Al aire libre"]
[{"$f":"CELL(\"address\",'Order form'!Q25)","v":"'[LIFTBOY1_Order form_2022_DE.xlsm]Order form'!$Q$25"},"Dropdown","Automatic","Automatisch","Automatiquement","Automático"]
[{"$f":"CELL(\"address\",'Order form'!Q25)","v":"'[LIFTBOY1_Order form_2022_DE.xlsm]Order form'!$Q$25"},"Dropdown","Manual","Manuell","Manuellement","Manual"]
[{"$f":"CELL(\"address\",'Order form'!Q26)","v":"'[LIFTBOY1_Order form_2022_DE.xlsm]Order form'!$Q$26"},"Dropdown","No (standard)","Nein (Standard)","Non (standard)","No (estándar)"]
[{"$f":"CELL(\"address\",'Order form'!Q26)","v":"'[LIFTBOY1_Order form_2022_DE.xlsm]Order form'!$Q$26"},"Dropdown","Yes - on left side","Ja - an der linken Seite","Oui - sur le côté gauche","Sí - en el lado izquierdo"]
[{"$f":"CELL(\"address\",'Order form'!Q26)","v":"'[LIFTBOY1_Order form_2022_DE.xlsm]Order form'!$Q$26"},"Dropdown","Yes - on right side","Ja - an der rechten Seite","Oui - sur le côté droit","Sí - en el lado derecho"]
[{"$f":"CELL(\"address\",'Order form'!Q27)","v":"'[LIFTBOY1_Order form_2022_DE.xlsm]Order form'!$Q$27"},"Dropdown","No (standard)","Nein (Standard)","Non (standard)","No (estándar)"]
[{"$f":"CELL(\"address\",'Order form'!Q27)","v":"'[LIFTBOY1_Order form_2022_DE.xlsm]Order form'!$Q$27"},"Dropdown","Yes - on left side","Ja - an der linken Seite","Oui - sur le côté gauche","Sí - en el lado izquierdo"]
[{"$f":"CELL(\"address\",'Order form'!Q27)","v":"'[LIFTBOY1_Order form_2022_DE.xlsm]Order form'!$Q$27"},"Dropdown","Yes - on right side","Ja - an der rechten Seite","Oui - sur le côté droit","Sí - en el lado derecho"]
[{"$f":"CELL(\"address\",'Order form'!Q28)","v":"'[LIFTBOY1_Order form_2022_DE.xlsm]Order form'!$Q$28"},"Dropdown","RAL 7035 (standard)","RAL 7035 (Standard)","RAL 7035 (standard)","RAL 7035 (estándar)"]
[{"$f":"CELL(\"address\",'Order form'!Q28)","v":"'[LIFTBOY1_Order form_2022_DE.xlsm]Order form'!$Q$28"},"Dropdown","RAL 9007 (standard)","RAL 9007 (Standard)","RAL 9007 (standard)","RAL 9007 (estándar)"]
[{"$f":"CELL(\"address\",'Order form'!Q28)","v":"'[LIFTBOY1_Order form_2022_DE.xlsm]Order form'!$Q$28"},"Dropdown","Special RAL","Special RAL","Special RAL","Special RAL"]
[]
[{"$f":"CELL(\"address\",'Order form'!AM23)","v":"'[LIFTBOY1_Order form_2022_DE.xlsm]Order form'!$AM$23"},"Formula","=IF(Q23=\"Yes\",\"The lifting height is reduced by the pit depth\", \"\")","=IF(Q23=\"Ja\",\"Die Hubhöhe reduziert sich um die Grubentiefe\", \"\")","=IF(Q23=\"Oui\",\"La hauteur de levage est réduite par la profondeur de la fosse\", \"\")","=IF(Q23=\"Sí\",\"La altura de elevación se reduce por la profundidad del foso\", \"\")"]
[{"$f":"CELL(\"address\",'Order form'!AM26)","v":"'[LIFTBOY1_Order form_2022_DE.xlsm]Order form'!$AM$26"},"Formula","=IF(Q26<>\"No (standard)\",\"See the illustration on the right\", \"\")","=IF(Q26<>\"Nein (standard)\",\"Beachten Sie die Illustration rechts\", \"\")","=IF(Q26<>\"Non (standard)\",\"Voir l'illustration à droite\", \"\")","=IF(Q26<>\"No (estándar)\",\"Vea la ilustración de la derecha\", \"\")"]
[{"$f":"CELL(\"address\",'Order form'!AM27)","v":"'[LIFTBOY1_Order form_2022_DE.xlsm]Order form'!$AM$27"},"Formula","=IF(Q27<>\"No (standard)\",\"See the illustration on the right\", \"\")","=IF(Q27<>\"Nein (standard)\",\"Beachten Sie die Illustration rechts\", \"\")","=IF(Q27<>\"Non (standard)\",\"Voir l'illustration à droite\", \"\")","=IF(Q27<>\"No (estándar)\",\"Vea la ilustración de la derecha\", \"\")"]
[{"$f":"CELL(\"address\",'Order form'!AM37)","v":"'[LIFTBOY1_Order form_2022_DE.xlsm]Order form'!$AM$37"},"Formula","=IF(Q27<>\"No (standard)\",\"Not possible for side entry on lower level\", \"\")","=IF(Q27<>\"Nein (standard)\",\"Nicht möglich für seitliche Auffahrt an unterer Haltestelle\", \"\")","=IF(Q27<>\"Non (standard)\",\"Pas possible pour l'entrée latérale sur le palier inférieur\", \"\")","=IF(Q27<>\"No (estándar)\",\"No es posible para la entrada lateral en el nivel inferior\", \"\")"]
[{"$f":"CELL(\"address\",'Order form'!AM43)","v":"'[LIFTBOY1_Order form_2022_DE.xlsm]Order form'!$AM$43"},"Formula","=IF(Q43<>\"No\",\"See the illustration on the right\", \"\")","=IF(Q43<>\"Nein\",\"Beachten Sie die Illustration rechts\", \"\")","=IF(Q43<>\"Non\",\"Voir l'illustration à droite\", \"\")","=IF(Q43<>\"No\",\"Vea la ilustración de la derecha\", \"\")"]
[{"$f":"CELL(\"address\",'Order form'!AN39)","v":"'[LIFTBOY1_Order form_2022_DE.xlsm]Order form'!$AN$39"},"Label","Gate opening direction DIN","Richtung der Türöffnung DIN","Sens d'ouverture du porte DIN","Dirección de apertura de la puerta DIN"]
[{"$f":"CELL(\"address\",'Order form'!AN44)","v":"'[LIFTBOY1_Order form_2022_DE.xlsm]Order form'!$AN$44"},"Label","Right","Rechts","Droit","Derecha"]
[{"$f":"CELL(\"address\",'Order form'!AN42)","v":"'[LIFTBOY1_Order form_2022_DE.xlsm]Order form'!$AN$42"},"Label","Left","Links","Á gauche","Izquierda"]
[{"$f":"CELL(\"address\",'Order form'!B30)","v":"'[LIFTBOY1_Order form_2022_DE.xlsm]Order form'!$B$30"},"Label","Extra options","Extra Optionen","Options supplémentaires","Opciones extras"]
[{"$f":"CELL(\"address\",'Order form'!B31)","v":"'[LIFTBOY1_Order form_2022_DE.xlsm]Order form'!$B$31"},"Label","Pillar for control panel","Bediensäule","Poteau pour boîtier cde","Columna para el control de la plataforma"]
[{"$f":"CELL(\"address\",'Order form'!B32)","v":"'[LIFTBOY1_Order form_2022_DE.xlsm]Order form'!$B$32"},"Label","Contact bar","Kontaktleisten","Butée de contact","Bar de contacto en los 4 lados"]
[{"$f":"CELL(\"address\",'Order form'!B33)","v":"'[LIFTBOY1_Order form_2022_DE.xlsm]Order form'!$B$33"},"Label","Hard wired external control station","Verkabelte Außensteuerungen","Boîtes palières câblé","Controles externos cableados"]
[{"$f":"CELL(\"address\",'Order form'!B34)","v":"'[LIFTBOY1_Order form_2022_DE.xlsm]Order form'!$B$34"},"Label","Radio controlled external control station","Funk Außensteuerungen","Boîtes palières radio commande","Controles externos radio"]
[{"$f":"CELL(\"address\",'Order form'!B35)","v":"'[LIFTBOY1_Order form_2022_DE.xlsm]Order form'!$B$35"},"Label","Pillar for external control fixation","Befestigungssäule für Außensteuerung","Pilier pour fixation des boîtes palières ","Pilar para fijación de control externo"]
[{"$f":"CELL(\"address\",'Order form'!B36)","v":"'[LIFTBOY1_Order form_2022_DE.xlsm]Order form'!$B$36"},"Label","Higher lateral barriers (900 mm)","Erhöhte Barrieren (900 mm)","Les barrières plus haut (900 mm)","Barrieras mas altas (900 mm)"]
[{"$f":"CELL(\"address\",'Order form'!B37)","v":"'[LIFTBOY1_Order form_2022_DE.xlsm]Order form'!$B$37"},"Label","750 mm access ramp","750 mm Auffahrrampe","Rampe d'acces de 750 mm","Rampa de acceso de 750 mm"]
[]
[{"$f":"CELL(\"address\",'Order form'!B39)","v":"'[LIFTBOY1_Order form_2022_DE.xlsm]Order form'!$B$39"},"Label","Special size access ramp","Speziallänge für Auffahrrampe","Longeur speciale pour la rampe d'acces","Longitud especial para la rampa de acceso"]
[null,null,{"$f":"IF(AND(Q79=0,Q78=\"yes\"),\"Set the special rail LENGTH in mm\",\"\")","v":""}]
[{"$f":"CELL(\"address\",'Order form'!B41)","v":"'[LIFTBOY1_Order form_2022_DE.xlsm]Order form'!$B$41"},"Label","Transport wheels","Transporträder","Dispositif pour déplacement","Ruedas para el transporte"]
[{"$f":"CELL(\"address\",'Order form'!B42)","v":"'[LIFTBOY1_Order form_2022_DE.xlsm]Order form'!$B$42"},"Label","Safety bar for upper landing","Sicherheitsbügel für obere Haltestelle","Garde-corps supérieur","Bar de seguridad en la salida superior"]
[{"$f":"CELL(\"address\",'Order form'!B43)","v":"'[LIFTBOY1_Order form_2022_DE.xlsm]Order form'!$B$43"},"Label","Gate on upper landing","Halbhohe Türe für obere Haltestelle","Porte pour l'arrêt supérieur ","Puerta en la estación superior"]
[{"$f":"CELL(\"address\",'Order form'!B44)","v":"'[LIFTBOY1_Order form_2022_DE.xlsm]Order form'!$B$44"},"Label","Type of upper landing gate","Version der halbhohen Türe","Version de la porte","Version de la puerta"]
[{"$f":"CELL(\"address\",'Order form'!B45)","v":"'[LIFTBOY1_Order form_2022_DE.xlsm]Order form'!$B$45"},"Label","Automatic gate opener (only for Liftboy 3)","Automatischer Türöffner (nur für Liftboy 3)","Porte automatique (seulement pour Liftboy Type 3)","Portero automático (solo para Liftboy 3)"]
[]
[{"$f":"CELL(\"address\",'Order form'!Q31)","v":"'[LIFTBOY1_Order form_2022_DE.xlsm]Order form'!$Q$31"},"Dropdown","No","Nein","Non","No"]
[{"$f":"CELL(\"address\",'Order form'!Q31)","v":"'[LIFTBOY1_Order form_2022_DE.xlsm]Order form'!$Q$31"},"Dropdown","Yes","Ja","Oui","Sí"]
[{"$f":"CELL(\"address\",'Order form'!Q32)","v":"'[LIFTBOY1_Order form_2022_DE.xlsm]Order form'!$Q$32"},"Dropdown","No","Nein","Non","No"]
[{"$f":"CELL(\"address\",'Order form'!Q32)","v":"'[LIFTBOY1_Order form_2022_DE.xlsm]Order form'!$Q$32"},"Dropdown","Yes","Ja","Oui","Sí"]
[{"$f":"CELL(\"address\",'Order form'!Q33)","v":"'[LIFTBOY1_Order form_2022_DE.xlsm]Order form'!$Q$33"},"Dropdown","No","Nein","Non","No"]
[{"$f":"CELL(\"address\",'Order form'!Q33)","v":"'[LIFTBOY1_Order form_2022_DE.xlsm]Order form'!$Q$33"},"Dropdown","1","1","1","1"]
[{"$f":"CELL(\"address\",'Order form'!Q33)","v":"'[LIFTBOY1_Order form_2022_DE.xlsm]Order form'!$Q$33"},"Dropdown","2","2","2","2"]
[{"$f":"CELL(\"address\",'Order form'!Q34)","v":"'[LIFTBOY1_Order form_2022_DE.xlsm]Order form'!$Q$34"},"Dropdown","No","Nein","Non","No"]
[{"$f":"CELL(\"address\",'Order form'!Q34)","v":"'[LIFTBOY1_Order form_2022_DE.xlsm]Order form'!$Q$34"},"Dropdown","1","1","1","1"]
[{"$f":"CELL(\"address\",'Order form'!Q34)","v":"'[LIFTBOY1_Order form_2022_DE.xlsm]Order form'!$Q$34"},"Dropdown","2","2","2","2"]
[{"$f":"CELL(\"address\",'Order form'!Q35)","v":"'[LIFTBOY1_Order form_2022_DE.xlsm]Order form'!$Q$35"},"Dropdown","No","Nein","Non","No"]
[{"$f":"CELL(\"address\",'Order form'!Q35)","v":"'[LIFTBOY1_Order form_2022_DE.xlsm]Order form'!$Q$35"},"Dropdown","1","1","1","1"]
[{"$f":"CELL(\"address\",'Order form'!Q35)","v":"'[LIFTBOY1_Order form_2022_DE.xlsm]Order form'!$Q$35"},"Dropdown","2","2","2","2"]
[{"$f":"CELL(\"address\",'Order form'!Q36)","v":"'[LIFTBOY1_Order form_2022_DE.xlsm]Order form'!$Q$36"},"Dropdown","No","Nein","Non","No"]
[{"$f":"CELL(\"address\",'Order form'!Q36)","v":"'[LIFTBOY1_Order form_2022_DE.xlsm]Order form'!$Q$36"},"Dropdown","Yes","Ja","Oui","Sí"]
[{"$f":"CELL(\"address\",'Order form'!Q37)","v":"'[LIFTBOY1_Order form_2022_DE.xlsm]Order form'!$Q$37"},"Dropdown","No","Nein","Non","No"]
[{"$f":"CELL(\"address\",'Order form'!Q37)","v":"'[LIFTBOY1_Order form_2022_DE.xlsm]Order form'!$Q$37"},"Dropdown","Yes","Ja","Oui","Sí"]
[{"$f":"CELL(\"address\",'Order form'!Q38)","v":"'[LIFTBOY1_Order form_2022_DE.xlsm]Order form'!$Q$38"},"Dropdown","No","Nein","Non","No"]
[{"$f":"CELL(\"address\",'Order form'!Q38)","v":"'[LIFTBOY1_Order form_2022_DE.xlsm]Order form'!$Q$38"},"Dropdown","Yes","Ja","Oui","Sí"]
[{"$f":"CELL(\"address\",'Order form'!Q39)","v":"'[LIFTBOY1_Order form_2022_DE.xlsm]Order form'!$Q$39"},"Dropdown","No","Nein","Non","No"]
[{"$f":"CELL(\"address\",'Order form'!Q39)","v":"'[LIFTBOY1_Order form_2022_DE.xlsm]Order form'!$Q$39"},"Dropdown","Yes","Ja","Oui","Sí"]
[{"$f":"CELL(\"address\",'Order form'!Q40)","v":"'[LIFTBOY1_Order form_2022_DE.xlsm]Order form'!$Q$40"},"Dropdown","No","Nein","Non","No"]
[{"$f":"CELL(\"address\",'Order form'!Q40)","v":"'[LIFTBOY1_Order form_2022_DE.xlsm]Order form'!$Q$40"},"Dropdown","Yes","Ja","Oui","Sí"]
[{"$f":"CELL(\"address\",'Order form'!Q41)","v":"'[LIFTBOY1_Order form_2022_DE.xlsm]Order form'!$Q$41"},"Dropdown","No","Nein","Non","No"]
[{"$f":"CELL(\"address\",'Order form'!Q41)","v":"'[LIFTBOY1_Order form_2022_DE.xlsm]Order form'!$Q$41"},"Dropdown","Yes","Ja","Oui","Sí"]
[{"$f":"CELL(\"address\",'Order form'!Q42)","v":"'[LIFTBOY1_Order form_2022_DE.xlsm]Order form'!$Q$42"},"Dropdown","No","Nein","Non","No"]
[{"$f":"CELL(\"address\",'Order form'!Q42)","v":"'[LIFTBOY1_Order form_2022_DE.xlsm]Order form'!$Q$42"},"Dropdown","Yes","Ja","Oui","Sí"]
[{"$f":"CELL(\"address\",'Order form'!Q43)","v":"'[LIFTBOY1_Order form_2022_DE.xlsm]Order form'!$Q$43"},"Dropdown","No","Nein","Non","No"]
[{"$f":"CELL(\"address\",'Order form'!Q43)","v":"'[LIFTBOY1_Order form_2022_DE.xlsm]Order form'!$Q$43"},"Dropdown","Yes - left opening","Ja - links","Oui - à gauche","Sí - izquierda"]
[{"$f":"CELL(\"address\",'Order form'!Q43)","v":"'[LIFTBOY1_Order form_2022_DE.xlsm]Order form'!$Q$43"},"Dropdown","Yes - right opening","Ja - rechts","Qui - droit","Sí - derecha"]
[{"$f":"CELL(\"address\",'Order form'!Q44)","v":"'[LIFTBOY1_Order form_2022_DE.xlsm]Order form'!$Q$44"},"Dropdown","-","-","-","-"]
[{"$f":"CELL(\"address\",'Order form'!Q44)","v":"'[LIFTBOY1_Order form_2022_DE.xlsm]Order form'!$Q$44"},"Dropdown","Adjustable","Einstellbar","Réglable","Ajustable"]
[{"$f":"CELL(\"address\",'Order form'!Q44)","v":"'[LIFTBOY1_Order form_2022_DE.xlsm]Order form'!$Q$44"},"Dropdown","Fixed without landing control","Fixiert ohne integrierte Außensteuerung","Fixe sans contrôle d'atterrissage","Fijo sin control de aterrizaje"]
[{"$f":"CELL(\"address\",'Order form'!Q44)","v":"'[LIFTBOY1_Order form_2022_DE.xlsm]Order form'!$Q$44"},"Dropdown","Fixed with landing control","Fixiert mit integrierter Außensteuerung","Fixe avec contrôle d'atterrissage","Fijo con el control de aterrizaje integrado"]
[{"$f":"CELL(\"address\",'Order form'!Q45)","v":"'[LIFTBOY1_Order form_2022_DE.xlsm]Order form'!$Q$45"},"Dropdown","No","Nein","Non","No"]
[{"$f":"CELL(\"address\",'Order form'!Q45)","v":"'[LIFTBOY1_Order form_2022_DE.xlsm]Order form'!$Q$45"},"Dropdown","Yes","Ja","Oui","Sí"]
[]
[{"$f":"CELL(\"address\",'Order form'!B47)","v":"'[LIFTBOY1_Order form_2022_DE.xlsm]Order form'!$B$47"},"Label","Further specifications","Weitere Optionen","Autres options","Especificaciones adicionales"]
[{"$f":"CELL(\"address\",'Order form'!B48)","v":"'[LIFTBOY1_Order form_2022_DE.xlsm]Order form'!$B$48"},"Label","Transport box","Transportkiste","Boîte de transport","Caja de transporte"]
[{"$f":"CELL(\"address\",'Order form'!B49)","v":"'[LIFTBOY1_Order form_2022_DE.xlsm]Order form'!$B$49"},"Label","Change in the order after approval","Änderung nach Produktionsstart","Change in the order after approval","Change in the order after approval"]
[{"$f":"CELL(\"address\",'Order form'!B50)","v":"'[LIFTBOY1_Order form_2022_DE.xlsm]Order form'!$B$50"},"Label","Warranty in months","Garantie","Garantie","Garantia"]
[]
[{"$f":"CELL(\"address\",'Order form'!B52)","v":"'[LIFTBOY1_Order form_2022_DE.xlsm]Order form'!$B$52"},"Label","Montáž ALTECH"]
[{"$f":"CELL(\"address\",'Order form'!B53)","v":"'[LIFTBOY1_Order form_2022_DE.xlsm]Order form'!$B$53"},"Label","Vzdálenost do místa instalace v km"]
[{"$f":"CELL(\"address\",'Order form'!B54)","v":"'[LIFTBOY1_Order form_2022_DE.xlsm]Order form'!$B$54"},"Label","Zapuštění plošiny do jámy"]
[{"$f":"CELL(\"address\",'Order form'!B55)","v":"'[LIFTBOY1_Order form_2022_DE.xlsm]Order form'!$B$55"},"Label","Stavební úpravy ALTECH"]
[{"$f":"CELL(\"address\",'Order form'!B56)","v":"'[LIFTBOY1_Order form_2022_DE.xlsm]Order form'!$B$56"},"Label","El. přípojka ALTECH"]
[{"$f":"CELL(\"address\",'Order form'!B57)","v":"'[LIFTBOY1_Order form_2022_DE.xlsm]Order form'!$B$57"},"Label","Electric supply position","Position eleketrisches Kabel","Situation de l'approvisionnement en électricité","Posición de suministro eléctrico"]
[]
[{"$f":"CELL(\"address\",'Order form'!Q48)","v":"'[LIFTBOY1_Order form_2022_DE.xlsm]Order form'!$Q$48"},"Dropdown","Q1 - cardboard box (standard)","Q1 - Kartonbox (Standard)","Q1 - Boîte en carton","Q1 - Caja de cartón (estandard)"]
[{"$f":"CELL(\"address\",'Order form'!Q48)","v":"'[LIFTBOY1_Order form_2022_DE.xlsm]Order form'!$Q$48"},"Dropdown","Q3 - wooden box for sea transport","Q3 - Holzkiste für Seetransport","Q3 - Caisse en bois pour le transport maritime","Q3 - Caja de madera para el transporte marítimo"]
[{"$f":"CELL(\"address\",'Order form'!Q48)","v":"'[LIFTBOY1_Order form_2022_DE.xlsm]Order form'!$Q$48"},"Dropdown","Q3 - wooden box for air transport","Q3 - Holzkiste für Lufttransport","Q3 - Caisse en bois pour le transport aérien","Q3 - Caja de madera para transporte aéreo"]
[{"$f":"CELL(\"address\",'Order form'!Q49)","v":"'[LIFTBOY1_Order form_2022_DE.xlsm]Order form'!$Q$49"},"Dropdown","No","Nein","Non","No"]
[{"$f":"CELL(\"address\",'Order form'!Q49)","v":"'[LIFTBOY1_Order form_2022_DE.xlsm]Order form'!$Q$49"},"Dropdown","Yes","Ja","Oui","Sí"]
[{"$f":"CELL(\"address\",'Order form'!Q50)","v":"'[LIFTBOY1_Order form_2022_DE.xlsm]Order form'!$Q$50"},"Dropdown","12","12","12","12"]
[{"$f":"CELL(\"address\",'Order form'!Q50)","v":"'[LIFTBOY1_Order form_2022_DE.xlsm]Order form'!$Q$50"},"Dropdown","24","24","24","24"]
[{"$f":"CELL(\"address\",'Order form'!Q50)","v":"'[LIFTBOY1_Order form_2022_DE.xlsm]Order form'!$Q$50"},"Dropdown","36","36","36","36"]
[{"$f":"CELL(\"address\",'Order form'!Q50)","v":"'[LIFTBOY1_Order form_2022_DE.xlsm]Order form'!$Q$50"},"Dropdown","48","48","48","48"]
[{"$f":"CELL(\"address\",'Order form'!Q50)","v":"'[LIFTBOY1_Order form_2022_DE.xlsm]Order form'!$Q$50"},"Dropdown","60","60","60","60"]
[{"$f":"CELL(\"address\",'Order form'!Q50)","v":"'[LIFTBOY1_Order form_2022_DE.xlsm]Order form'!$Q$50"},"Dropdown","other","other","other","other"]
[{"$f":"CELL(\"address\",'Order form'!Q52)","v":"'[LIFTBOY1_Order form_2022_DE.xlsm]Order form'!$Q$52"},"Dropdown","No","Nein","Non","No"]
[{"$f":"CELL(\"address\",'Order form'!Q52)","v":"'[LIFTBOY1_Order form_2022_DE.xlsm]Order form'!$Q$52"},"Dropdown","Yes","Ja","Oui","Sí"]
[{"$f":"CELL(\"address\",'Order form'!Q54)","v":"'[LIFTBOY1_Order form_2022_DE.xlsm]Order form'!$Q$54"},"Dropdown","No","Nein","Non","No"]
[{"$f":"CELL(\"address\",'Order form'!Q54)","v":"'[LIFTBOY1_Order form_2022_DE.xlsm]Order form'!$Q$54"},"Dropdown","Yes","Ja","Oui","Sí"]
[{"$f":"CELL(\"address\",'Order form'!Q55)","v":"'[LIFTBOY1_Order form_2022_DE.xlsm]Order form'!$Q$55"},"Dropdown","No","Nein","Non","No"]
[{"$f":"CELL(\"address\",'Order form'!Q55)","v":"'[LIFTBOY1_Order form_2022_DE.xlsm]Order form'!$Q$55"},"Dropdown","Yes","Ja","Oui","Sí"]
[{"$f":"CELL(\"address\",'Order form'!Q56)","v":"'[LIFTBOY1_Order form_2022_DE.xlsm]Order form'!$Q$56"},"Dropdown","No","Nein","Non","No"]
[{"$f":"CELL(\"address\",'Order form'!Q56)","v":"'[LIFTBOY1_Order form_2022_DE.xlsm]Order form'!$Q$56"},"Dropdown","Yes","Ja","Oui","Sí"]
[{"$f":"CELL(\"address\",'Order form'!Q57)","v":"'[LIFTBOY1_Order form_2022_DE.xlsm]Order form'!$Q$57"},"Dropdown","Back - right side","Hinten rechts","Retour - côté droit","Atrás - lado derecho"]
[{"$f":"CELL(\"address\",'Order form'!Q57)","v":"'[LIFTBOY1_Order form_2022_DE.xlsm]Order form'!$Q$57"},"Dropdown","Back - left side","Hinten links","Retour - côté gauche","Atrás - lado izquierdo"]
[{"$f":"CELL(\"address\",'Order form'!Q57)","v":"'[LIFTBOY1_Order form_2022_DE.xlsm]Order form'!$Q$57"},"Dropdown","Front - right side","Vorne rechts","Avant - côté droit","Frente - lado derecho"]
[{"$f":"CELL(\"address\",'Order form'!Q57)","v":"'[LIFTBOY1_Order form_2022_DE.xlsm]Order form'!$Q$57"},"Dropdown","Front - left side","Vorne links","Avant - côté gauche","Frente - lado izquierdo"]
[]
[{"$f":"CELL(\"address\",'Order form'!B61)","v":"'[LIFTBOY1_Order form_2022_DE.xlsm]Order form'!$B$61"},"Label","Additional information","Zusätzliche Information","Information additionnelle","Información Adicional"]
[{"$f":"CELL(\"address\",'Order form'!B70)","v":"'[LIFTBOY1_Order form_2022_DE.xlsm]Order form'!$B$70"},"Label","Delivery date","Lieferdatum","Date de livraison","Fecha de entrega"]
[{"$f":"CELL(\"address\",'Order form'!V70)","v":"'[LIFTBOY1_Order form_2022_DE.xlsm]Order form'!$V$70"},"Label","Prepared by","Bearbeitet von","Preparé par","Preparado por"]
[{"$f":"CELL(\"address\",'Order form'!H70)","v":"'[LIFTBOY1_Order form_2022_DE.xlsm]Order form'!$H$70"},"Label","Week","Woche","Semaine","Semana"]

{"sheet":"LangBackup","index":2,"n_rows":164,"n_cols":5,"rows_kept":164,"cut":false,"hidden":true,"merged":[]}
["Cell","Type","English","Deutsch","French"]
["Q3","Label","ALPHA stairlift","Alpha Treppenlift"]
["Q4","Label","Order form","Bestellformular","Bon de commande"]
["D3","Label","Dimension No.","Abmessung Nr.","Numéro de dimension"]
["D5","Label","Language","Sprache","La langue"]
["AD3","Label","Date:","Datum:","l' date"]
["AD4","Label","Version:","Version:","Version"]
["P6","Label","Distributor: (always fill out)","Händler: (immer ausfüllen)","Distributeur: (remplissez toujours)"]
["AB6","Label","Delivery address: (always fill out)","Lieferadresse: (immer ausfüllen)","Adresse de livraison: (remplissez toujours)"]
["P7","Label","Company:","Firma:","Enterprise"]
["B7","Label","Company:","Firma:","Enterprise"]
["P9","Label","Address","Anschrift","Une robe"]
["AB9","Label","Address","Anschrift","Une robe"]
["P10","Label","Postcode","Postleitzahl","Code postal"]
["AB10","Label","Postcode","Postleitzahl","Code postal"]
["P11","Label","City","Stadt","Ville"]
["AB11","Label","City","Stadt","Ville"]
["P12","Label","Country","Land","le pays"]
["AB12","Label","Country","Land","le pays"]
["D23","Label","Installation location","Installationsort"]
["D24","Label","Installation side","Montageseite","Côté d'installation"]
["C17","Label","Pick up address for lifts: Spedition Englmayer, Wiesenstrasse 71, 4600 Wels, Austria","ABHOLADRESSE: Spedition Englmayer, Wiesenstrasse 71, 4600 Wels, Austria"]
["C19","Label","Production No.","Produktionsnummer"]
["I19","Label","Order reference name (or number)","Auftragsreferenz (Name oder Nummer)"]
["C22","Label","Rail specification","Schienenspezifikation"]
["D25","Label","Rail length in meters rounded","Schienenlänge (ungefähr in m)","Longueur du rail en mètres arrondis"]
["D26","Label","Lower stop","Untere Haltestelle","Arrêt inférieur"]
["D27","Label","Upper stop","Obere Haltestelle","Arrêt supérieur"]
["D28","Label","Number of 90° curves","Anzahl der 90° Kurven","Nombre de courbes à 90°"]
["D28","Label","Number of 180° curves","Anzahl der 180° Kurven","Nombre de courbes à 180°"]
["D30","Label","Number of special curves","Anzahl der Spezialkurven","Nombre de courbes spéciales"]
["D31","Label","Number of negative curves","Anzahl der Negativkurven"]
["D32","Label","Number of vertical bends","Number of vertical bends"]
["D33","Label","Number of intermediate stops","Anzahl der Zwischenhaltestellen"]
["D34","Label","Rail surface treatment","Schienenfarbe"]
["AD26","Formula","=IF(R26=\"straight start with bottom overrun\",\"mm from first step to end of chair\", \"\")","=IF(R26=\"Gerade mit horizontalem Auslauf\",\"mm von erster Stufe bis Ende Sitz\", \"\")"]
["AD27","Formula","=IF(R27=\"straight top overrun\",\"mm from last step to end of chair\", \"\")","=IF(R27=\"Gerader Überlauf\",\"mm von letzter Stufe bis Ende Sitz\", \"\")"]
["R23","Dropdown","Indoor","Innen"]
["R23","Dropdown","Outdoor","Im Außenbereich"]
["R24","Dropdown","Left","Links","La gauche"]
["R24","Dropdown","Right","Rechts","Droite"]
["R26","Dropdown","Straight","Gerade","Tout droit"]
["R26","Dropdown","Straight with steep start","Gerade mit Steilstart","Droit avec début raide"]
["R26","Dropdown","Straight start with bottom overrun","Gerade mit horizontalem Auslauf","Début droit avec dépassement du bas"]
["R26","Dropdown","90°","90°","90°"]
["R26","Dropdown","180°","180°","180°"]
["R26","Dropdown","Special curve","Spezialkurve","Courbe spéciale"]
["R27","Dropdown","Straight at last step","Gerade an letzter Stufe","Droit à la dernière étape"]
["R27","Dropdown","Straight top overrun","Gerader Überlauf","Débordement droit"]
["R27","Dropdown","90° on top landing","90° auf oberem Podest","Atterrissage supérieur à 90°"]
["R27","Dropdown","180° on top landing","180° auf oberem Podest","Atterrissage supérieur à 180°"]
["R27","Dropdown","Special curve on top landing","Spezialkurve auf oberem Podest","Courbe spéciale sur le palier supérieur"]
["R34","Dropdown","RAL 7035 (standard)","RAL 7035 (Standard)"]
["R34","Dropdown","special RAL","Spezial RAL"]
["R34","Dropdown","zinc + RAL 7035","Verzinkt + RAL 7035"]
["R34","Dropdown","zinc + special RAL","Verzinkt + spezial RAL"]
["C36","Label","Design specifications","Sitz Design Optionen","Les spécifications de conception"]
["D37","Label","Execution","Ausführung","Exécution"]
["D38","Label","Seat design type","Sitz Design Typ","Type de conception du siège"]
["D39","Label","Upholstery","Sitzfarbe","Tapisserie"]
["D40","Label","Automatic footrest folding","Automatisches Fußbrett","Repose-pied automatique"]
["D41","Label","Automatic seat swivel","Automatischer Drehsitz","Siège pivotant automatique"]
["D42","Label","Bigger armrest distance (+100mm)","Größere Distanz zwischen Armlehnen ","Plus grande distance d'accoudoir (+ 100mm)"]
["D43","Label","Joystick position side","Joystickposition","Position du joystick"]
["D44","Label","External landing controls (always radio)","Externe Landekontrollen (immer Radio)","Contrôles d'atterrissage externes (toujours radio)"]
["D45","Label","Type of key","Art des Schlüssels","Type de clé"]
["D46","Label","Total no. of external landing controls","Anzahl Fernbedienungen gesamt","Nombre total de contrôles d'atterrissage externes"]
["D47","Label","Postion of external controls","Stellung externer Kontrollen","Position des contrôles externes"]
["R37","Dropdown","Stairlift + rail (standard)","Kompletter Lift "]
["R37","Dropdown","Rail only","Nur Schiene"]
["AS39","Label","Blue","Blau","Bleu"]
["AS40","Label","Red","rot","rouge"]
["AS41","Label","Brown","Braun","marron"]
["AS42","Label","Green","Grün","vert"]
["AS43","Label","Beige","Beige","Beige"]
["AS44","Label","Light gray","Hellgrau","Gris clair"]
["AT39","Label","Marine blue","Marineblau","Bleu marine"]
["AT40","Label","Emerald green","Smaragdgrün","vert émeraude"]
["AT41","Label","Ruby red","Rubinrot","rouge rubis"]
["AT42","Label","Pearl white","Perlweiss","Perle blanche"]
["AT43","Label","Walnut brown","Walnussbraun","Marron"]
["AT44","Label","Safran yellow","Safran-Gelb","Jaune safran"]
["AU39","Label","Marine blue","Marineblau","Bleu marine"]
["AU40","Label","Emerald green","Smaragdgrün","vert émeraude"]
["AU41","Label","Ruby red","Rubinrot","rouge rubis"]
["AU42","Label","Pearl white","Perlweiss","Perle blanche"]
["AU43","Label","Walnut brown","Walnussbraun","Marron"]
["AU44","Label","Safran yellow","Safran-Gelb","Jaune safran"]
["AV39","Label","Olive (woven textile)","Olive (gewebtes Textil)","Olive (textile tissé)"]
["AV40","Label","Granite (woven textile)","Granit (gewebtes Textil)","Granite (textile tissé)"]
["AV41","Label","Bordeaux (woven textile)","Bordeaux (gewebtes Textil)","Bordeaux (textile tissé)"]
["AV42","Label","Marble (woven textile)","Marmor (gewebtes Textil)","Marbre (textile tissé)"]
["AV43","Label","Ivory (woven textile)","Elfenbein (gewebtes Textil)","Ivoire (textile tissé)"]
["AV44","Label","Basalt (artificial leather)","Basalt (Kunstleder)","Basalte (cuir artificiel)"]
["AV45","Label","Burgundy (artificial leather)","Burgund (Kunstleder)","Bourgogne (cuir artificiel)"]
["AV46","Label","Mocha (artificial leather)","Mokka (Kunstleder)","Moka (cuir artificiel)"]
["R39","Switch","Blue","Blau","Bleu"]
["R39","Switch","Red","rot","rouge"]
["R39","Switch","Brown","Braun","marron"]
["R39","Switch","Green","Grün","vert"]
["R39","Switch","Beige","Beige","Beige"]
["R39","Switch","Light gray","Hellgrau","Gris clair"]
["R39","Switch","Marine blue","Marineblau","Bleu marine"]
["R39","Switch","Emerald green","Smaragdgrün","vert émeraude"]
["R39","Switch","Ruby red","Rubinrot","rouge rubis"]
["R39","Switch","Pearl white","Perlweiss","Perle blanche"]
["R39","Switch","Walnut brown","Walnussbraun","Marron"]
["R39","Switch","Safran yellow","Safran-Gelb","Jaune safran"]
["R39","Switch","Olive (woven textile)","Olive (gewebtes Textil)","Olive (textile tissé)"]
["R39","Switch","Granite (woven textile)","Granit (gewebtes Textil)","Granite (textile tissé)"]
["R39","Switch","Bordeaux (woven textile)","Bordeaux (gewebtes Textil)","Bordeaux (textile tissé)"]
["R39","Switch","Marble (woven textile)","Marmor (gewebtes Textil)","Marbre (textile tissé)"]
["R39","Switch","Ivory (woven textile)","Elfenbein (gewebtes Textil)","Ivoire (textile tissé)"]
["R39","Switch","Basalt (artificial leather)","Basalt (Kunstleder)","Basalte (cuir artificiel)"]
["R39","Switch","Burgundy (artificial leather)","Burgund (Kunstleder)","Bourgogne (cuir artificiel)"]
["R39","Switch","Mocha (artificial leather)","Mokka (Kunstleder)","Moka (cuir artificiel)"]
["R40","Dropdown","Yes","Ja","Oui"]
["R40","Dropdown","No","Nein","Non"]
["R41","Dropdown","Yes","Ja","Oui"]
["R41","Dropdown","No","Nein","Non"]
["R42","Dropdown","Yes","Ja","Oui"]
["R42","Dropdown","No","Nein","Non"]
["R43","Dropdown","On downstairs side (standard)","Talseitig","Côté bas (standard)"]
["R43","Dropdown","On upstairs side (optional)","Bergseitig","Du côté de l'étage (facultatif)"]
["R44","Dropdown","Membrane keypad (standard)","Folientastatur (Standard)","Clavier à membrane (standard)"]
["R44","Dropdown","Big push buttons","Großer Taster","Gros boutons poussoirs"]
["R45","Dropdown","Without key","Ohne Schlüssel","Sans clé"]
["R45","Dropdown","Mini key","Minischlüssel","Mini clé"]
["R47","Dropdown","Handset","Handkassette","Combiné"]
["R47","Dropdown","Wall-mounted","Wantmontiert","Mural"]
["R47","Dropdown","Pillar-mounted","Stützenmontiert","Monté sur pilier"]
["C49","Label","Further options","Zusätzliche Optionen"]
["D50","Label","Plastic cover for outdoor stairlift","Plastic cover for outdoor stairlift"]
["D54","Label","Warranty time","Warranty time"]
["D55","Label","Stainless steel label","Stainless steel label"]
["D56","Label","Transport box","Transportbox"]
["D59","Label","Drawing time urgency in working days","Drawing time urgency in days"]
["D60","Label","Service display","Service display"]
["D61","Label","Plastic cover for footplates","Kunststoffabdeckung für Stützenfüße"]
["D62","Label","Stand-up seat version (up to 120 kg)","Variante Stehsitz (bis zu 120 kg)"]
["D63","Label","Higher loading capacity of 145kg","Höhere Traglast bis 145 kg"]
["D64","Label","Optional user dimensions","Benutzergröße (optional)"]
["D65","Label","Extra heavy batteries","Extra starke Batterien"]
["R64","Label","Height from seat to head:","Maß Sitz bis Kopf"]
["AC64","Label","Distance from back to knees:","Maß Rücken bis Knie"]
["R50","Dropdown","Yes","Ja","Oui"]
[{"$f":"A146","v":"R50"},"Dropdown","No","Nein","Non"]
["R60","Dropdown","Yes","Ja","Oui"]
[{"$f":"A148","v":"R60"},"Dropdown","No","Nein","Non"]
["R61","Dropdown","Yes","Ja","Oui"]
[{"$f":"A150","v":"R61"},"Dropdown","No","Nein","Non"]
["R62","Dropdown","Yes","Ja","Oui"]
[{"$f":"A152","v":"R62"},"Dropdown","No","Nein","Non"]
["R63","Dropdown","Yes","Ja","Oui"]
[{"$f":"A154","v":"R63"},"Dropdown","No","Nein","Non"]
["C67","Label","Supporting structure","Art der Befestigung"]
["D68","Label","Fixing of the rails","Fixierung der Schiene"]
["R68","Dropdown","into the steps (standard)","Auf Stützen in die Treppe"]
["R68","Dropdown","clamp fixing on the steps","Mit Klemmen an die Treppe"]
["R68","Dropdown","on the wall with supporting pillars","An die Wand"]
["C72","Label","Additional information","Zusätzliche Information"]
["C81","Label","Delivery date","Lieferdatim:"]
["W81","Label","Prepared by","Bearbeitet von:"]
["K81","Label","Week","Woche","la semaine"]

{"sheet":"Setup","index":3,"n_rows":1,"n_cols":2,"rows_kept":1,"cut":false,"hidden":true,"merged":[]}
["Language","English"]